[Event "12th KIIT International 2019"]
[Site "Odisha"]
[Date "2019.06.01"]
[Round "2.18"]
[White "Dhyana Patel"]
[Black "Muthaiah AL"]
[Result "1/2-1/2"]
[ECO "B28"]
[WhiteElo "1911"]
[BlackElo "2427"]
[Annotator "ChessBase"]
[PlyCount "73"]
[EventDate "2019.01.18"]
[EventType "swiss"]
[EventCountry "IND"]
[SourceTitle "playchess.com"]
[Source "ChessBase"]
[SourceQuality "1"]
[TimeControl "5400+30"]

1. e4 {[%emt 0:00:00]} c5 {[%emt 0:00:36]} 2. Nf3 {[%emt 0:00:28]} a6 {[%emt 0:00:48]} 3. d4 {[%emt 0:02:10]} cxd4 {[%emt 0:00:46]} 4. Nxd4 {[%emt 0:00:03]} Nf6 {[%emt 0:00:22]} 5. Nc3 {[%emt 0:02:23]} e5 {[%emt 0:00:21]} 6. Nf3 {[%emt 0:03:14]} Bb4 {[%emt 0:00:27]} 7. Bd2 {[%emt 0:01:34]} O-O {[%emt 0:01:35]} 8. Bd3 {[%emt 0:03:39]} Nc6 {[%emt 0:19:13]} 9. O-O {[%emt 0:02:26]} h6 {[%emt 0:04:20]} 10. Nd5 {[%emt 0:03:01]} Bxd2 {[%emt 0:00:18]} 11. Nxf6+ {[%emt 0:03:38]} Qxf6 {[%emt 0:00:37]} 12. Nxd2 {[%emt 0:01:43]} Ne7 {[%emt 0:07:01]} 13. Nc4 {[%emt 0:04:26]} b5 {[%emt 0:02:47]} 14. Ne3 {[%emt 0:01:26]} Bb7 {[%emt 0:00:33]} 15. a4 {[%emt 0:00:32]} b4 {[%emt 0:06:55]} 16. a5 {[%emt 0:01:02]} d5 {[%emt 0:01:03]} 17. exd5 {[%emt 0:00:16]} Nxd5 {[%emt 0:00:26]} 18. Nxd5 {[%emt 0:00:29]} Bxd5 {[%emt 0:00:02]} 19. Bh7+ {[%emt 0:00:32]} Kxh7 {[%emt 0:00:09]} 20. Qxd5 {[%emt 0:00:02]} Rac8 {[%emt 0:02:14]} 21. Qe4+ {[%emt 0:02:44]} Kg8 {[%emt 0:06:43]} 22. Rfe1 {[%emt 0:10:31]} Rfd8 {[%emt 0:06:08]} 23. Rad1 Rxd1 {[%emt 0:00:30]} 24. Rxd1 Qc6 {[%emt 0:00:30]} 25. Qxb4 Qxc2 {[%emt 0:00:30]} 26. Re1 Rc5 {[%emt 0:00:30]} 27. Qb8+ Kh7 {[%emt 0:00:30]} 28. Qb7 Qe2 {[%emt 0:00:30]} 29. Qb4 Qb5 {[%emt 0:00:30]} 30. Qe4+ g6 {[%emt 0:00:30]} 31. h4 Qxb2 {[%emt 0:00:30]} 32. h5 Rxa5 {[%emt 0:00:30]} 33. hxg6+ fxg6 {[%emt 0:00:30]} 34. Qc6 Ra1 {[%emt 0:00:30]} 35. Qd7+ Kg8 {[%emt 0:00:30]} 36. Qe8+ Kg7 {[%emt 0:00:30]} 37. Qe7+ 1/2-1/2

[Event "12th KIIT International 2019"]
[Site "Odisha"]
[Date "2019.06.01"]
[Round "2.19"]
[White "Das, Sayantan"]
[Black "Anisuzzaman, Jewel"]
[Result "1-0"]
[ECO "B18"]
[WhiteElo "2419"]
[BlackElo "1936"]
[Annotator "ChessBase"]
[PlyCount "61"]
[EventDate "2019.01.18"]
[EventType "swiss"]
[EventCountry "IND"]
[SourceTitle "playchess.com"]
[Source "ChessBase"]
[SourceQuality "1"]
[TimeControl "5400+30"]

1. e4 {[%emt 0:00:00]} c6 {[%emt 0:00:03]} 2. d4 {[%emt 1:31:00]} d5 {[%emt 0:01:46]} 3. Nd2 {[%emt 0:00:00]} dxe4 {[%emt 0:00:13]} 4. Nxe4 {[%emt 0:00:00]} Bf5 {[%emt 0:00:36]} 5. Ng3 {[%emt 0:00:00]} Bg6 {[%emt 0:00:01]} 6. h4 {[%emt 0:00:00]} h6 {[%emt 0:00:46]} 7. Nh3 {[%emt 0:00:00]} e6 {[%emt 0:02:34]} 8. Nf4 {[%emt 0:00:00]} Bh7 {[%emt 0:00:33]} 9. Bc4 {[%emt 0:00:00]} Nf6 {[%emt 0:03:51]} 10. Qe2 {[%emt 0:00:00]} Be7 {[%emt 0:04:30]} 11. Bxe6 {[%emt 0:00:00]} O-O {[%emt 0:08:19]} 12. Bb3 {[%emt 0:00:00]} Qxd4 {[%emt 0:03:54]} 13. Qxe7 {[%emt 0:00:00]} Nbd7 {[%emt 0:11:16]} 14. c3 {[%emt 0:00:00]} Qb6 {[%emt 0:08:21]} 15. O-O {[%emt 0:00:00]} Rae8 {[%emt 0:10:46]} 16. Qb4 {[%emt 0:00:00]} Qc7 {[%emt 0:00:33]} 17. Nh3 {[%emt 0:00:00]} c5 {[%emt 0:03:58]} 18. Bf4 Qc6 {[%emt 0:00:30]} 19. Qa5 b6 {[%emt 0:00:30]} 20. Qa6 Rd8 {[%emt 0:00:30]} 21. Rad1 Qa8 {[%emt 0:00:30]} 22. Bd6 Rfe8 {[%emt 0:00:30]} 23. Nf4 Ne5 {[%emt 0:00:30]} 24. Bxe5 Rxe5 {[%emt 0:00:30]} 25. Rxd8+ Qxd8 {[%emt 0:00:30]} 26. Qxa7 Re7 {[%emt 0:00:30]} 27. Qa6 Rd7 {[%emt 0:00:30]} 28. Re1 Rd2 {[%emt 0:00:30]} 29. Qc4 Qc7 {[%emt 0:00:30]} 30. Nd5 Rxd5 {[%emt 0:00:30]} 31. Qxd5 1-0

[Event "12th KIIT International 2019"]
[Site "Odisha"]
[Date "2019.06.02"]
[Round "3.2"]
[White "Amonatov, Farrukh"]
[Black "Ziatdinov, Raset"]
[Result "1-0"]
[ECO "B40"]
[WhiteElo "2624"]
[BlackElo "2249"]
[Annotator "RC"]
[PlyCount "67"]
[EventDate "2019.01.18"]
[EventType "swiss"]
[EventCountry "IND"]
[SourceTitle "playchess.com"]
[Source "ChessBase"]
[SourceQuality "1"]
[TimeControl "5400+30"]

1. e4 {[%emt 0:00:00]} c5 {[%emt 0:00:00]} 2. Nf3 {[%emt 0:00:09]} e6 {[%emt 0:00:00]} 3. d4 {[%emt 0:00:06]} cxd4 {[%emt 0:00:00]} 4. Nxd4 {[%emt 0:00:07]} Nf6 {[%emt 0:00:00]} 5. Nc3 {[%emt 0:00:06]} Bb4 {[%emt 0:00:00]} 6. e5 {[%emt 0:00:15]} Ne4 {[%emt 0:00:00]} 7. Qd3 {[%emt 0:03:54]} Qc7 {[%emt 0:02:07]} 8. Qxe4 {[%emt 0:24:33]} Bxc3+ {[%emt 0:00:08]} 9. bxc3 {[%emt 0:00:04]} Qxc3+ {[%emt 0:00:06]} 10. Kd1 {[%emt 0:00:02]} Qxa1 {[%emt 0:01:30]} 11. Nb5 {[%emt 0:00:08]} d5 {[%emt 0:06:07]} 12. Qb4 {[%emt 0:13:23]} Nc6 {[%emt 0:03:41]} 13. Nc7+ {[%emt 0:03:17]} Kd8 {[%emt 0:00:18]} 14. Qd6+ {[%emt 0:00:05]} Bd7 {[%emt 0:00:08]} 15. Nxa8 {[%emt 0:00:04]} Qxe5 {[%emt 0:00:43]} 16. Bf4 {[%emt 0:07:21]} Qxd6 {[%emt 0:22:11]} 17. Bxd6 {[%emt 0:01:01]} Bc8 {[%emt 0:00:16]} 18. Nc7 {[%emt 0:00:28]} Kd7 {[%emt 0:00:32]} 19. Bg3 {[%emt 0:00:06]} a6 {[%emt 0:00:19]} 20. Na8 {[%emt 0:00:05]} e5 {[%emt 0:01:54]} 21. Nb6+ {[%emt 0:02:59]} Kd6 {[%emt 0:00:40]} 22. Nxc8+ {[%emt 0:01:02]} Rxc8 {[%emt 0:00:03]} 23. c3 {[%emt 0:02:21]} f5 {[%emt 0:01:52]} 24. f3 {[%emt 0:04:04]} f4 {[%emt 0:01:09]} 25. Bh4 {[%emt 0:02:43]} Na5 {[%emt 0:13:25]} 26. Be1 {[%emt 0:09:22]} e4 {[%emt 0:02:34]} 27. g3 {[%emt 0:00:38]} g5 {[%emt 0:01:33]} 28. h4 {[%emt 0:01:15]} h6 {[%emt 0:00:14]} 29. hxg5 {[%emt 0:00:12]} hxg5 {[%emt 0:00:02]} 30. Rh6+ {[%emt 0:00:44]} Ke5 {[%emt 0:08:02]} 31. Rh5 {[%emt 0:00:44]} Nc4 {[%emt 0:01:27]} 32. Rxg5+ {[%emt 0:01:05]} Kf6 {[%emt 0:00:10]} 33. gxf4 {[%emt 0:00:05]} exf3 {[%emt 0:00:47]} 34. Bf2 {[%emt 0:00:13]} 1-0

[Event "12th KIIT International 2019"]
[Site "Odisha"]
[Date "2019.06.02"]
[Round "3.5"]
[White "Srihari L R"]
[Black "Burmakin, Vladimir"]
[Result "1/2-1/2"]
[ECO "A45"]
[WhiteElo "2214"]
[BlackElo "2526"]
[Annotator "ChessBase"]
[PlyCount "45"]
[EventDate "2019.01.18"]
[EventType "swiss"]
[EventCountry "IND"]
[SourceTitle "playchess.com"]
[Source "ChessBase"]
[SourceQuality "1"]
[TimeControl "5400+30"]

1. d4 {[%emt 0:00:00]} Nf6 {[%emt 0:00:00]} 2. Bg5 {[%emt 0:01:52]} c6 {[%emt 0:00:00]} 3. Nd2 {[%emt 0:02:55]} Qb6 {[%emt 0:02:44]} 4. Nb3 {[%emt 0:15:13]} d5 {[%emt 0:02:42]} 5. e3 {[%emt 0:01:22]} Ne4 {[%emt 0:03:36]} 6. Bf4 {[%emt 0:00:52]} a5 {[%emt 0:00:10]} 7. a4 {[%emt 0:09:59]} Nd7 {[%emt 0:13:49]} 8. Nf3 {[%emt 0:18:14]} h6 {[%emt 0:06:52]} 9. h4 {[%emt 0:06:28]} Ndf6 {[%emt 0:00:20]} 10. Ne5 {[%emt 0:01:02]} h5 {[%emt 0:00:25]} 11. f3 {[%emt 0:04:23]} Nd6 {[%emt 0:00:23]} 12. Bd3 {[%emt 0:01:00]} g6 {[%emt 0:11:23]} 13. c3 {[%emt 0:13:43]} Bf5 {[%emt 0:02:05]} 14. Qc2 {[%emt 0:01:22]} e6 {[%emt 0:00:36]} 15. Nc5 {[%emt 0:02:58]} Bxd3 {[%emt 0:04:51]} 16. Qxd3 {[%emt 0:01:09]} Rg8 {[%emt 0:00:45]} 17. O-O {[%emt 0:02:05]} Qc7 {[%emt 0:04:51]} 18. c4 {[%emt 0:08:18]} b6 {[%emt 0:02:32]} 19. Nb3 {[%emt 0:00:50]} dxc4 {[%emt 0:00:13]} 20. Nxc4 {[%emt 0:00:24]} Nd5 {[%emt 0:00:22]} 21. Bg3 {[%emt 0:03:38]} Qd8 {[%emt 0:02:07]} 22. Ne5 {[%emt 0:01:47]} Nb4 {[%emt 0:00:27]} 23. Qe2 {[%emt 0:01:03]} 1/2-1/2

[Event "12th KIIT International 2019"]
[Site "Odisha"]
[Date "2019.06.02"]
[Round "3.6"]
[White "Rahman, Ziaur"]
[Black "Arpita, Mukherjee"]
[Result "1/2-1/2"]
[ECO "A45"]
[WhiteElo "2481"]
[BlackElo "2196"]
[Annotator "ChessBase"]
[PlyCount "64"]
[EventDate "2019.01.18"]
[EventType "swiss"]
[EventCountry "IND"]
[SourceTitle "playchess.com"]
[Source "ChessBase"]
[SourceQuality "1"]
[TimeControl "5400+30"]

1. d4 {[%emt 0:00:00]} Nf6 {[%emt 0:02:09]} 2. Bg5 {[%emt 0:00:16]} Ne4 {[%emt 0:00:23]} 3. Bf4 {[%emt 0:00:07]} d5 {[%emt 0:00:20]} 4. e3 {[%emt 0:01:34]} c5 {[%emt 0:00:29]} 5. Bd3 {[%emt 0:00:22]} Nf6 {[%emt 0:00:19]} 6. Nc3 {[%emt 0:02:04]} a6 {[%emt 0:01:24]} 7. dxc5 {[%emt 0:01:19]} Nc6 {[%emt 0:00:26]} 8. Nf3 {[%emt 0:02:47]} Bg4 {[%emt 0:00:56]} 9. Be2 {[%emt 0:10:54]} e6 {[%emt 0:07:12]} 10. Nd4 {[%emt 0:01:56]} Bxe2 {[%emt 0:02:01]} 11. Qxe2 {[%emt 0:00:48]} Bxc5 {[%emt 0:01:12]} 12. Nxc6 {[%emt 0:00:06]} bxc6 {[%emt 0:00:08]} 13. O-O {[%emt 0:00:13]} Bb4 {[%emt 0:09:30]} 14. Na4 {[%emt 0:01:57]} O-O {[%emt 0:05:35]} 15. c4 {[%emt 0:02:22]} Nd7 {[%emt 0:04:43]} 16. Rac1 {[%emt 0:03:07]} e5 {[%emt 0:05:17]} 17. Bg3 {[%emt 0:02:38]} Qa5 {[%emt 0:02:14]} 18. b3 {[%emt 0:01:05]} Rfe8 {[%emt 0:13:06]} 19. Rfd1 {[%emt 0:04:23]} Ba3 {[%emt 0:03:03]} 20. Rb1 {[%emt 0:01:43]} d4 {[%emt 0:17:04]} 21. exd4 {[%emt 0:08:44]} exd4 {[%emt 0:00:07]} 22. Qf3 {[%emt 0:00:43]} c5 {[%emt 0:02:23]} 23. h4 {[%emt 0:04:09]} Nf6 {[%emt 0:01:23]} 24. Be5 {[%emt 0:03:33]} Qd8 {[%emt 0:06:43]} 25. Bxf6 {[%emt 0:01:15]} Qxf6 {[%emt 0:00:23]} 26. Qxf6 {[%emt 0:00:28]} gxf6 {[%emt 0:00:02]} 27. Nb6 {[%emt 0:00:45]} Rad8 {[%emt 0:00:03]} 28. Kf1 {[%emt 0:01:30]} a5 {[%emt 0:01:59]} 29. Nd5 {[%emt 0:02:34]} Kg7 {[%emt 0:00:39]} 30. Rd3 {[%emt 0:03:06]} Rd6 {[%emt 0:02:54]} 31. Nc7 {[%emt 0:00:54]} Rb8 {[%emt 0:00:30]} 32. Re1 {[%emt 0:01:37]} Rc6 {[%emt 0:05:57]} 1/2-1/2

[Event "12th KIIT International 2019"]
[Site "Odisha"]
[Date "2019.06.02"]
[Round "3.7"]
[White "Baivab Mishra"]
[Black "Vasquez Schroeder, Rodrigo"]
[Result "0-1"]
[ECO "A30"]
[WhiteElo "2209"]
[BlackElo "2476"]
[Annotator "ChessBase"]
[PlyCount "74"]
[EventDate "2019.01.18"]
[EventType "swiss"]
[EventCountry "IND"]
[SourceTitle "playchess.com"]
[Source "ChessBase"]
[SourceQuality "1"]
[TimeControl "5400+30"]

1. Nf3 {[%emt 0:02:37]} Nf6 {[%emt 0:00:00]} 2. c4 {[%emt 0:01:05]} e6 {[%emt 0:01:02]} 3. g3 {[%emt 0:00:23]} b6 {[%emt 0:00:19]} 4. Bg2 {[%emt 0:00:06]} Bb7 {[%emt 0:00:01]} 5. O-O {[%emt 0:00:10]} c5 {[%emt 0:00:23]} 6. Nc3 {[%emt 0:00:07]} a6 {[%emt 0:00:20]} 7. Re1 {[%emt 0:00:08]} d6 {[%emt 0:00:41]} 8. e4 {[%emt 0:02:41]} Be7 {[%emt 0:00:53]} 9. d4 {[%emt 0:00:14]} cxd4 {[%emt 0:00:07]} 10. Nxd4 {[%emt 0:00:06]} Qc7 {[%emt 0:00:02]} 11. Qd3 {[%emt 0:04:19]} O-O {[%emt 0:00:20]} 12. b3 {[%emt 0:00:05]} Nbd7 {[%emt 0:00:41]} 13. Bb2 {[%emt 0:00:07]} Nc5 {[%emt 0:05:25]} 14. Qe2 {[%emt 0:02:00]} Rfe8 {[%emt 0:00:17]} 15. Rac1 {[%emt 0:00:26]} Rac8 {[%emt 0:00:32]} 16. h3 {[%emt 0:06:27]} Bf8 {[%emt 0:00:32]} 17. g4 {[%emt 0:03:55]} g6 {[%emt 0:09:02]} 18. Qd2 {[%emt 0:05:01]} Qb8 {[%emt 0:02:03]} 19. Nde2 {[%emt 0:03:43]} e5 {[%emt 0:07:02]} 20. Qe3 {[%emt 0:08:16]} Ba8 {[%emt 0:04:20]} 21. Nd5 {[%emt 0:04:16]} Bxd5 {[%emt 0:01:05]} 22. cxd5 {[%emt 0:00:34]} b5 {[%emt 0:02:47]} 23. Ng3 {[%emt 0:01:27]} h6 {[%emt 0:01:44]} 24. Bf3 {[%emt 0:06:48]} Nh7 {[%emt 0:06:28]} 25. Kh2 {[%emt 0:00:34]} Be7 {[%emt 0:00:26]} 26. Qe2 {[%emt 0:02:30]} Bg5 {[%emt 0:00:47]} 27. Rc2 {[%emt 0:00:05]} Nd7 {[%emt 0:01:29]} 28. Nf1 {[%emt 0:07:47]} Rxc2 {[%emt 0:00:26]} 29. Qxc2 {[%emt 0:00:01]} Rc8 {[%emt 0:00:07]} 30. Qd3 {[%emt 0:02:47]} Qb6 {[%emt 0:06:06]} 31. Ne3 {[%emt 0:04:23]} Qa5 {[%emt 0:01:42]} 32. Qb1 {[%emt 0:05:09]} Bf4+ {[%emt 0:00:43]} 33. Kg2 {[%emt 0:01:37]} Ng5 {[%emt 0:02:51]} 34. Nf1 {[%emt 0:17:51]} Nf6 {[%emt 0:01:58]} 35. a3 {[%emt 0:03:01]} Qc7 {[%emt 0:02:44]} 36. Re2 {[%emt 0:00:42]} Qd7 {[%emt 0:01:43]} 37. Ne3 {[%emt 0:03:26]} h5 {[%emt 0:01:17]} 0-1

[Event "12th KIIT International 2019"]
[Site "Odisha"]
[Date "2019.06.02"]
[Round "3.8"]
[White "Nguyen, Van Huy"]
[Black "Patil, Pratik"]
[Result "1/2-1/2"]
[ECO "D85"]
[WhiteElo "2456"]
[BlackElo "2184"]
[Annotator "ChessBase"]
[PlyCount "52"]
[EventDate "2019.01.18"]
[EventType "swiss"]
[EventCountry "IND"]
[SourceTitle "playchess.com"]
[Source "ChessBase"]
[SourceQuality "1"]
[TimeControl "5400+30"]

1. d4 {[%emt 0:00:00]} Nf6 {[%emt 0:00:00]} 2. c4 {[%emt 0:00:01]} g6 {[%emt 0:00:11]} 3. Nc3 {[%emt 0:01:49]} d5 {[%emt 0:01:02]} 4. cxd5 {[%emt 0:00:23]} Nxd5 {[%emt 0:00:03]} 5. Bd2 {[%emt 0:00:21]} Nb6 {[%emt 0:01:17]} 6. e4 {[%emt 0:00:21]} Bg7 {[%emt 0:03:40]} 7. Be3 {[%emt 0:00:21]} O-O {[%emt 0:11:53]} 8. h3 {[%emt 0:01:28]} e5 {[%emt 0:10:04]} 9. Nf3 {[%emt 0:01:31]} exd4 {[%emt 0:01:04]} 10. Bxd4 {[%emt 0:00:17]} Nc6 {[%emt 0:03:19]} 11. Bxg7 {[%emt 0:01:19]} Qxd1+ {[%emt 0:02:15]} 12. Rxd1 {[%emt 0:00:48]} Kxg7 {[%emt 0:00:02]} 13. Bb5 {[%emt 0:04:58]} Nb4 {[%emt 0:00:47]} 14. O-O {[%emt 0:10:06]} a6 {[%emt 0:04:17]} 15. Be2 {[%emt 0:00:47]} Re8 {[%emt 0:14:00]} 16. Nd4 {[%emt 0:06:49]} Bd7 {[%emt 0:02:18]} 17. Rd2 {[%emt 0:19:52]} Nc6 {[%emt 0:13:43]} 18. Rfd1 {[%emt 0:02:17]} Nxd4 {[%emt 0:02:42]} 19. Rxd4 {[%emt 0:00:05]} Bc6 {[%emt 0:00:38]} 20. f4 {[%emt 0:01:55]} h5 {[%emt 0:03:31]} 21. Kf2 {[%emt 0:01:16]} Kf8 {[%emt 0:01:13]} 22. Bf3 {[%emt 0:04:41]} Ke7 {[%emt 0:07:35]} 23. e5 {[%emt 0:01:49]} Bxf3 {[%emt 0:00:19]} 24. Kxf3 {[%emt 0:00:03]} Rad8 {[%emt 0:03:03]} 25. Ne4 {[%emt 0:01:45]} Rxd4 {[%emt 0:02:03]} 26. Rxd4 {[%emt 0:00:04]} Nd7 {[%emt 0:02:50]} 1/2-1/2

[Event "12th KIIT International 2019"]
[Site "Odisha"]
[Date "2019.06.02"]
[Round "3.9"]
[White "Nayak Rajesh"]
[Black "Kostenko, Petr"]
[Result "1-0"]
[ECO "C13"]
[WhiteElo "2175"]
[BlackElo "2473"]
[Annotator "ChessBase"]
[PlyCount "74"]
[EventDate "2019.01.18"]
[EventType "swiss"]
[EventCountry "IND"]
[SourceTitle "playchess.com"]
[Source "ChessBase"]
[SourceQuality "1"]
[TimeControl "5400+30"]

1. e4 {[%emt 0:01:37]} e6 {[%emt 0:00:12]} 2. d4 {[%emt 0:00:50]} d5 {[%emt 0:00:04]} 3. Nc3 {[%emt 0:01:52]} Nf6 {[%emt 0:01:21]} 4. Bg5 {[%emt 0:00:15]} dxe4 {[%emt 0:01:22]} 5. Nxe4 {[%emt 0:00:10]} Be7 {[%emt 0:00:17]} 6. Bxf6 {[%emt 0:00:09]} gxf6 {[%emt 0:00:04]} 7. Nf3 {[%emt 0:00:11]} b6 {[%emt 0:00:26]} 8. Bc4 {[%emt 0:02:49]} Bb7 {[%emt 0:00:09]} 9. Qe2 {[%emt 0:00:06]} Nd7 {[%emt 0:06:40]} 10. O-O-O {[%emt 0:00:31]} c6 {[%emt 0:00:11]} 11. Rhe1 {[%emt 0:03:31]} Qc7 {[%emt 0:04:12]} 12. Kb1 {[%emt 0:01:58]} O-O-O {[%emt 0:02:04]} 13. Ba6 {[%emt 0:00:28]} b5 {[%emt 0:01:27]} 14. Bxb7+ {[%emt 0:00:30]} Kxb7 {[%emt 0:00:11]} 15. c3 {[%emt 0:13:30]} h5 {[%emt 0:02:46]} 16. g3 {[%emt 0:00:49]} Ka8 {[%emt 0:00:44]} 17. Ned2 {[%emt 0:16:19]} Nb6 {[%emt 0:00:40]} 18. Nh4 {[%emt 0:07:20]} b4 {[%emt 0:01:19]} 19. Nb3 {[%emt 0:05:28]} bxc3 {[%emt 0:00:12]} 20. bxc3 {[%emt 0:00:04]} Nd5 {[%emt 0:00:16]} 21. Qc4 {[%emt 0:03:10]} Qb6 {[%emt 0:06:03]} 22. Kc2 {[%emt 0:01:38]} Qb5 {[%emt 0:04:02]} 23. Nd2 {[%emt 0:04:54]} Rd7 {[%emt 0:05:59]} 24. f4 {[%emt 0:33:51]} Rc8 {[%emt 0:01:43]} 25. f5 {[%emt 0:00:00]} e5 {[%emt 0:00:50]} 26. a4 {[%emt 0:00:00]} Qa5 {[%emt 0:07:31]} 27. Nb3 {[%emt 0:00:00]} Qc7 {[%emt 0:00:07]} 28. Nf3 {[%emt 0:00:00]} exd4 {[%emt 0:03:56]} 29. Nfxd4 {[%emt 0:00:00]} h4 {[%emt 0:02:54]} 30. Rd3 {[%emt 0:00:00]} Bf8 {[%emt 0:01:44]} 31. Qxc6+ {[%emt 0:00:00]} Qxc6 {[%emt 0:02:04]} 32. Nxc6 {[%emt 0:00:00]} Rdc7 {[%emt 0:02:02]} 33. Rxd5 {[%emt 0:00:00]} Rxc6 {[%emt 0:00:04]} 34. Re3 {[%emt 0:00:00]} hxg3 {[%emt 0:01:15]} 35. hxg3 {[%emt 0:00:00]} Bb4 {[%emt 0:05:11]} 36. Rdd3 {[%emt 0:00:00]} Bd6 {[%emt 0:01:37]} 37. Nd4 {[%emt 0:00:00]} Rb6 {[%emt 0:00:48]} 1-0

[Event "12th KIIT International 2019"]
[Site "Odisha"]
[Date "2019.06.02"]
[Round "3.10"]
[White "Laxman, R.R."]
[Black "Hari Madhavan N B"]
[Result "1-0"]
[ECO "D23"]
[WhiteElo "2437"]
[BlackElo "2093"]
[Annotator "ChessBase"]
[PlyCount "87"]
[EventDate "2019.01.18"]
[EventType "swiss"]
[EventCountry "IND"]
[SourceTitle "playchess.com"]
[Source "ChessBase"]
[SourceQuality "1"]
[TimeControl "5400+30"]

1. d4 {[%emt 0:00:00]} d5 {[%emt 0:00:00]} 2. Nf3 {[%emt 0:00:00]} Nf6 {[%emt 0:00:00]} 3. c4 {[%emt 0:00:00]} c6 {[%emt 0:00:00]} 4. Qc2 {[%emt 0:00:20]} dxc4 {[%emt 0:00:18]} 5. Qxc4 {[%emt 0:00:02]} b5 {[%emt 0:00:08]} 6. Qc2 {[%emt 0:06:19]} Bb7 {[%emt 0:00:16]} 7. e4 {[%emt 0:01:26]} e6 {[%emt 0:04:26]} 8. Bd3 {[%emt 0:00:44]} h6 {[%emt 0:03:00]} 9. O-O {[%emt 0:00:18]} Nbd7 {[%emt 0:00:08]} 10. Nbd2 {[%emt 0:01:37]} Be7 {[%emt 0:02:18]} 11. Nb3 {[%emt 0:01:41]} O-O {[%emt 0:03:35]} 12. Qe2 {[%emt 0:02:41]} c5 {[%emt 0:08:07]} 13. dxc5 {[%emt 0:04:18]} Nxc5 {[%emt 0:00:13]} 14. Nxc5 {[%emt 0:00:04]} Bxc5 {[%emt 0:00:04]} 15. e5 {[%emt 0:00:40]} Ng4 {[%emt 0:03:20]} 16. Bf4 {[%emt 0:08:00]} Bxf3 {[%emt 0:11:46]} 17. gxf3 {[%emt 0:06:39]} Nxf2 {[%emt 0:00:42]} 18. Rxf2 {[%emt 0:00:05]} Bxf2+ {[%emt 0:00:04]} 19. Kxf2 {[%emt 0:00:05]} Qd4+ {[%emt 0:00:34]} 20. Kg3 {[%emt 0:01:03]} g5 {[%emt 0:04:26]} 21. Be3 {[%emt 0:01:18]} Qxe5+ {[%emt 0:00:14]} 22. f4 {[%emt 0:00:06]} gxf4+ {[%emt 0:11:16]} 23. Bxf4 {[%emt 0:00:08]} Qxe2 {[%emt 0:00:04]} 24. Bxe2 {[%emt 0:00:02]} e5 {[%emt 0:03:21]} 25. Bxh6 {[%emt 0:00:34]} Rfd8 {[%emt 0:03:09]} 26. Kg4 {[%emt 0:00:14]} Rd6 {[%emt 0:10:18]} 27. Be3 {[%emt 0:00:43]} Rf6 {[%emt 0:14:48]} 28. h4 {[%emt 0:05:58]} Rc8 {[%emt 0:02:11]} 29. Rc1 {[%emt 0:10:07]} Rxc1 {[%emt 0:01:19]} 30. Bxc1 {[%emt 0:00:02]} Rc6 {[%emt 0:04:40]} 31. Be3 {[%emt 0:00:46]} Rc2 {[%emt 0:00:35]} 32. Bxb5 {[%emt 0:00:05]} Rxb2 {[%emt 0:00:04]} 33. a4 {[%emt 0:00:05]} a6 {[%emt 0:00:03]} 34. Bd7 {[%emt 0:00:33]} Rb7 {[%emt 0:01:54]} 35. Bc6 {[%emt 0:00:19]} Rb4+ {[%emt 0:00:09]} 36. Kg5 {[%emt 0:01:57]} Rb3 {[%emt 0:02:59]} 37. Ba7 {[%emt 0:02:27]} Rc3 {[%emt 0:01:06]} 38. Bd5 {[%emt 0:00:20]} Ra3 {[%emt 0:04:25]} 39. Kf6 {[%emt 0:00:05]} Rxa4 {[%emt 0:00:11]} 40. Bxf7+ {[%emt 0:00:01]} Kh8 {[%emt 0:00:05]} 41. h5 {[%emt 0:01:27]} Rf4+ {[%emt 0:00:10]} 42. Kg6 {[%emt 0:00:10]} Rg4+ {[%emt 0:00:20]} 43. Kf6 {[%emt 0:00:38]} Rf4+ {[%emt 0:00:06]} 44. Ke7 {[%emt 0:01:18]} 1-0

[Event "12th KIIT International 2019"]
[Site "Odisha"]
[Date "2019.06.02"]
[Round "3.11"]
[White "Khusenkhojaev, Muhammad"]
[Black "Joshi, Govind Ballabh"]
[Result "1-0"]
[ECO "E04"]
[WhiteElo "2446"]
[BlackElo "2121"]
[Annotator "ChessBase"]
[PlyCount "75"]
[EventDate "2019.01.18"]
[EventType "swiss"]
[EventCountry "IND"]
[SourceTitle "playchess.com"]
[Source "ChessBase"]
[SourceQuality "1"]
[TimeControl "5400+30"]

1. Nf3 {[%emt 0:00:00]} d5 {[%emt 0:00:00]} 2. d4 {[%emt 0:00:00]} e6 {[%emt 0:01:34]} 3. c4 {[%emt 0:00:00]} Nf6 {[%emt 0:00:38]} 4. g3 {[%emt 0:00:10]} dxc4 {[%emt 0:01:39]} 5. Bg2 {[%emt 0:00:06]} a6 {[%emt 0:02:40]} 6. O-O {[%emt 0:00:21]} Nc6 {[%emt 0:01:22]} 7. e3 {[%emt 0:00:14]} Bd7 {[%emt 0:01:46]} 8. Qe2 {[%emt 0:00:14]} Bd6 {[%emt 0:03:00]} 9. Qxc4 {[%emt 0:00:36]} Rb8 {[%emt 0:01:01]} 10. Rd1 {[%emt 0:00:15]} Qe7 {[%emt 0:07:05]} 11. Nbd2 {[%emt 0:04:08]} e5 {[%emt 0:07:22]} 12. dxe5 {[%emt 0:01:36]} Nxe5 {[%emt 0:00:07]} 13. Nxe5 {[%emt 0:00:18]} Qxe5 {[%emt 0:00:47]} 14. Qc2 {[%emt 0:04:32]} Bg4 {[%emt 0:09:15]} 15. Re1 {[%emt 0:01:52]} Qc5 {[%emt 0:06:44]} 16. Nc4 {[%emt 0:03:23]} Be7 {[%emt 0:08:32]} 17. b3 {[%emt 0:04:35]} Qh5 {[%emt 0:01:19]} 18. Bb2 {[%emt 0:01:03]} O-O {[%emt 0:07:48]} 19. Ne5 {[%emt 0:03:00]} c6 {[%emt 0:00:22]} 20. Nxg4 {[%emt 0:02:08]} Nxg4 {[%emt 0:00:03]} 21. h3 {[%emt 0:00:12]} Nf6 {[%emt 0:00:30]} 22. e4 {[%emt 0:01:18]} Rbd8 {[%emt 0:06:19]} 23. Red1 {[%emt 0:01:37]} Qa5 {[%emt 0:03:24]} 24. e5 {[%emt 0:05:31]} Nd5 {[%emt 0:08:59]} 25. a3 {[%emt 0:01:16]} Nc7 {[%emt 0:03:30]} 26. b4 {[%emt 0:11:39]} Qb6 {[%emt 0:00:36]} 27. Be4 {[%emt 0:01:59]} h6 {[%emt 0:04:21]} 28. Qc3 {[%emt 0:06:04]} Ne6 {[%emt 0:01:23]} 29. h4 {[%emt 0:02:57]} c5 {[%emt 0:00:43]} 30. Qe3 {[%emt 0:00:22]} a5 {[%emt 0:01:40]} 31. Bc3 {[%emt 0:00:58]} axb4 {[%emt 0:01:04]} 32. axb4 {[%emt 0:00:07]} Qc7 {[%emt 0:00:02]} 33. b5 {[%emt 0:01:32]} Rxd1+ {[%emt 0:02:38]} 34. Rxd1 {[%emt 0:00:08]} b6 {[%emt 0:00:01]} 35. Bd3 {[%emt 0:02:11]} Rd8 {[%emt 0:00:26]} 36. Qe4 {[%emt 0:00:22]} g6 {[%emt 0:00:01]} 37. Ra1 {[%emt 0:03:12]} Qd7 {[%emt 0:01:51]} 38. Bc4 {[%emt 0:00:12]} 1-0